fUSD/lending_fUSD_20251110
["ID","MTS","AMOUNT","RATE_DAILY","PERIOD"]
[393538542,1762780961466,-6500.0,0.000519,120]
[393538543,1762780961490,-41750.0,0.00052,120]
[393538544,1762780961515,-200.0,0.00052,120]
[393538545,1762780961539,-5000.0,0.00052,120]
[393538546,1762780961564,-100000.0,0.00052,120]
[393538547,1762780961587,-202.0,0.00052,120]
[393538548,1762780961611,-2948.4928771,0.00052,120]
[393538549,1762780961636,-150.0,0.00052,120]
[393538550,1762780961660,-647.3,0.00052055,120]
[393538551,1762780961885,326.92050298,0.00051708,120]
[393538552,1762780961914,1168.04584028,0.00051708,120]
[393538555,1762781108001,99661.12,0.00018,2]
[393538556,1762781108034,100000.0,0.00018,2]
[393538557,1762781108068,100000.0,0.00018,2]
[393538558,1762781108105,14000.0,0.00018,2]
[393538567,1762781124848,-227.53742627,0.00018,2]
[393538568,1762781126605,-260.08655982,0.00018,2]
[393538569,1762781128855,-284.51257373,0.00018,2]
[393538570,1762781130447,-250.0,0.00018,2]
[393538572,1762781133468,-496.76516185,0.00018,2]
[393538573,1762781156578,458.46,0.0003013,120]
[393538574,1762781160950,9345.15645464,8e-05,2]
[393538575,1762781176151,-300.0,0.00017999,2]
[393539586,1762781263204,263.0,0.00017999,2]
[393539677,1762781272589,9137.01,0.00015,2]
[393539678,1762781272614,10000.01,0.00015,2]
[393539679,1762781272638,10000.01,0.00015,2]
[393539680,1762781272662,10000.01,0.00015,2]
[393539681,1762781272685,10000.01,0.00015,2]
[393539682,1762781272708,10000.01,0.00015,2]
[393539683,1762781272731,9220.65006652,0.00015,2]
[393539684,1762781273273,-283.24847223,0.00017999,2]
[393539685,1762781278309,-216.75152777,0.00017999,2]
[393539686,1762781278333,-177.00519718,0.00017999,2]
[393539688,1762781282933,-224.23419029,0.00017999,2]
[393539690,1762781286838,-98.76061253,0.00017999,2]
[393539691,1762781286867,-64.40938747,0.00017999,2]
[393539693,1762781291245,-328.53066956,0.00017999,2]
[393539695,1762781294104,-107.05994297,0.00017999,2]
[393539696,1762781294128,-132.53773654,0.00017999,2]
[393539697,1762781295508,-250.0,0.00017999,2]
[393539698,1762781297670,-117.46226346,0.00017999,2]
[393539699,1762781297697,-83.45664957,0.00017999,2]
[393539701,1762781300895,-223.66125096,0.00017999,2]
[393539702,1762781304811,-192.88209947,0.00017999,2]
[393539703,1762781304834,-154.22585616,0.00017999,2]
[393539704,1762781307070,-218.06726765,0.00017999,2]
[393539705,1762781310489,-127.70687619,0.00017999,2]
[393539706,1762781310513,-41.36312381,0.00017999,2]
[393539709,1762781313393,-151.12507822,0.00017999,2]
[393539804,1762781316917,-157.37,0.00017999,2]
[393539807,1762781318599,-106.53060259,0.00017999,2]
[393539808,1762781318628,-130.49073152,0.00017999,2]
[393539810,1762781334887,-301.20187829,0.00017999,2]
[393539811,1762781336981,-68.30739019,0.00017999,2]
[393539812,1762781337008,-257.65781179,0.00017999,2]
[393539813,1762781340572,-237.44913697,0.00017999,2]
[393539814,1762781343347,-4.89305124,0.00017999,2]
[393539815,1762781343370,-146.10694876,0.00017999,2]
[393539816,1762781345131,-330.40070945,0.00017999,2]
[393539817,1762781347038,-23.49234179,0.00017999,2]
[393539818,1762781347062,-350.94593654,0.00017999,2]
[393539819,1762781350001,-149.05406346,0.00017999,2]
[393539820,1762781350224,-23.72523654,0.00017999,2]
[393539821,1762781352335,-394.40706214,0.00017999,2]
[393539822,1762781354668,-81.86770132,0.00017999,2]
[393539823,1762781354697,-231.87229868,0.00017999,2]
[393539824,1762781356807,-151.0,0.00017999,2]
[393539825,1762781359319,-117.12770132,0.00017999,2]
[393539826,1762781359344,-182.91018808,0.00017999,2]
[393539827,1762781360106,-317.08981192,0.00017999,2]
[393539828,1762781360135,-500.0,0.00017999,2]
[393539829,1762781360157,-568.274305,0.00017999,2]
[393539830,1762781360186,-500.0,0.00017999,2]
[393539831,1762781360215,-500.0,0.00017999,2]
[393539832,1762781360243,-500.55129323,0.00017999,2]
[393539833,1762781360271,-500.0,0.00017999,2]
[393539834,1762781360292,-245.49623629,0.00017999,2]
[393539835,1762781360315,-325.72052699,0.00018,2]
[393539836,1762781415955,-167000.0,0.00018,2]
[393539857,1762781431576,-2816.70427712,0.00018,2]
[393539858,1762781431588,-671.62853264,0.00018,2]
[393539859,1762781431598,-2067.72567852,0.00018,2]
[393539860,1762781431639,-750.41519898,0.00018,2]
[393539861,1762781431651,-5519.81133792,0.00018,2]
[393539862,1762781431696,-21384.69791885,0.00018,2]
[393539863,1762781431706,-2314.68908875,0.000204,2]
[393539864,1762781431717,-449.72391721,0.000204,2]
[393539865,1762781431726,-2849.95994385,0.00027257,2]
[393539872,1762781437391,-340.91936722,0.00027256,2]
[393539873,1762781437401,-500.0,0.00027256,2]
[393539874,1762781437411,-166.72792147,0.00027256,2]
[393539875,1762781437421,-2241.46106201,0.00027257,2]
[393539876,1762781437430,-50.2389993,0.00028,60]
[393539877,1762781437442,-659.93455117,0.00028,60]
[393539878,1762781437451,-150.0,0.00029044,2]
[393539879,1762781437466,-9.21944801,0.00029468,2]
[393539961,1762781439524,-3472.98961198,0.00029468,2]
[393539962,1762781439535,-250.0,0.00029982,2]
[393539963,1762781439546,-314.48312944,0.00032151,2]
[393539964,1762781439555,-1000.0,0.00032247,2]
[393539965,1762781439565,-210.36,0.00032476,2]
[393539966,1762781439575,-171.14066556,0.00032735,2]
[393539967,1762781439584,-2685.43,0.00032735,2]
[393539968,1762781439593,-1022.0,0.00032746,2]
[393539969,1762781439604,-14782.5854015,0.00032825,3]
[393539970,1762781439613,-151.0,0.00032832,14]
[393539971,1762781439623,-500.0,0.00032834,2]
[393539972,1762781439633,-1019.0,0.00032835,7]
[393539973,1762781439643,-250.15455644,0.00032835,2]
[393539974,1762781439654,-2275.68099802,0.00032835,2]
[393539975,1762781439667,-307.28337753,0.00032835,2]
[393539976,1762781439679,-951.30798175,0.00032835,2]
[393539977,1762781439694,-6215.56308626,0.00032835,2]
[393539978,1762781439704,-3078.85527933,0.00032835,2]
[393539979,1762781439716,-1017.17472067,0.00032835,2]
[393539980,1762781439726,-9999.99,0.00032835,2]
[393539981,1762781439736,-2028.86716162,0.00032835,2]
[393539982,1762781439764,-7971.12283838,0.00032835,2]
[393539983,1762781439774,-242.44716162,0.00032835,2]
[393539984,1762781440419,-1.7e-07,0.00032835,2]
[393539997,1762781442550,-13646.0904496,0.00032835,2]
[393540001,1762781442777,-67794.61238861,0.00032835,2]
[393540002,1762781442786,-999.99,0.00032835,2]
[393540003,1762781442795,-500.0,0.00032873,5]
[393540004,1762781442805,-500.0,0.00032873,5]
[393540005,1762781442814,-500.0,0.00032873,5]
[393540006,1762781442824,-501.12226289,0.00032873,5]
[393540007,1762781442833,-500.0,0.00032873,2]
[393540008,1762781442842,-313.4747397,0.00032873,5]
[393540009,1762781442851,-500.0,0.00032873,5]
[393540010,1762781442861,-503.07424639,0.00032873,5]
[393540011,1762781442870,-616.99576082,0.00032873,5]
[393540012,1762781442880,-500.0,0.00032873,3]
[393540013,1762781442890,-500.0,0.00032873,5]
[393540014,1762781442899,-503.00814931,0.00032873,5]
[393540015,1762781442909,-500.0,0.00032873,5]
[393540016,1762781442921,-500.0,0.00032873,5]
[393540017,1762781442932,-500.0,0.00032873,5]
[393540018,1762781442941,-500.0,0.00032873,5]
[393540019,1762781442952,-506.43722381,0.00032873,5]
[393540020,1762781442960,-500.0,0.00032873,5]
[393540021,1762781442969,-500.0,0.00032873,5]
[393540022,1762781442978,-160.58726341,0.00032873,5]
[393540023,1762781442987,-500.60167379,0.00032873,5]
[393540024,1762781442995,-500.0,0.00032873,5]
[393540025,1762781443004,-171.8473654,0.00032887,7]
[393540026,1762781443014,-14782.5854015,0.00032888,3]
[393540027,1762781443023,-1019.0,0.00032898,2]
[393540028,1762781443033,-228.0,0.00032925,2]
[393540029,1762781443042,-4693.34978475,0.00032937,2]
[393540030,1762781443052,-1019.0,0.00032937,2]
[393540031,1762781443061,-610.0,0.00033342,2]
[393540032,1762781443071,-1016.0,0.00033356,2]
[393540033,1762781443080,-500.0,0.00033421,5]
[393540034,1762781443090,-1003.51222161,0.00033421,5]
[393540035,1762781443099,-1006.27473026,0.00033421,5]
[393540036,1762781443109,-500.0,0.00033421,5]
[393540037,1762781443118,-500.0,0.00033421,5]
[393540038,1762781443128,-1755.24849582,0.00033437,2]
[393540039,1762781443137,-9502.61863472,0.0003347,2]
[393540041,1762781443146,-150.0,0.0003355,2]
[393540043,1762781443156,-14782.5854015,0.0003356,3]
[393540045,1762781443167,-20317.9144806,0.0003357,30]
[393540046,1762781443176,-176.70044332,0.00033573,7]
[393540047,1762781443186,-392.76692357,0.0003358,2]
[393540048,1762781443195,-6478.0,0.00033614,2]
[393540049,1762781443204,-1016.0,0.0003362,2]
[393540050,1762781443215,-176.70044332,0.0003364,7]
[393540051,1762781443225,-1975.0,0.00033645,2]
[393540052,1762781443235,-206956.195621,0.00033657,3]
[393540053,1762781443246,-119166.658811,0.00033657,3]
[393540054,1762781443255,-420000.0,0.00033667,2]
[393540055,1762781443269,-500.0,0.00033673,5]
[393540056,1762781443279,-477.41,0.00033699,2]
[393540057,1762781443289,-308.41,0.000337,30]
[393540058,1762781443299,-176.70044332,0.00033707,7]
[393540059,1762781443308,-488.39660574,0.00033748,2]
[393540060,1762781443317,-29565.170803,0.00033757,3]
[393540061,1762781443327,-19861.1098018,0.00033757,3]
[393540062,1762781443336,-33280.6446,0.00033767,2]
[393540063,1762781443346,-1000.0,0.00033767,2]
[393540064,1762781443355,-500.46483746,0.00033773,5]
[393540065,1762781443364,-155.29788682,0.00033773,5]
[393540066,1762781443373,-500.0,0.00033773,5]
[393540067,1762781443383,-1085.1018,0.00033781,10]
[393540068,1762781443392,-360.78637131,0.00033786,2]
[393540069,1762781443402,-1016.0,0.00033786,2]
[393540070,1762781443411,-59130.341606,0.00033798,3]
[393540071,1762781443421,-59583.3294052,0.00033798,3]
[393540072,1762781443430,-500.0,0.00033807,2]
[393540073,1762781443439,-47114.97337253,0.00033808,2]
[393540074,1762781445620,-1744.55523217,0.00033808,2]
[393540088,1762782631842,-182.09968573,0.00029795,60]
[393540089,1762782631852,-250.0,0.00029798,2]
[393540090,1762782631862,-502.30842797,0.000298,5]
[393540091,1762782631872,-188.82,0.00029895,2]
[393540092,1762782631882,-166.66,0.00030715,30]
[393540093,1762782631891,-105.15871341,0.00031066,2]
[393540094,1762782631906,-57.39862793,0.00031066,2]
[393540095,1762782631916,-961.06137205,0.00031242,2]
[393540128,1762782637521,-275.0130064,0.00031242,2]
[393540129,1762782637597,-2565.99540423,0.00031242,2]
[393540130,1762782637690,-1860.74665932,0.00031242,2]
[393540131,1762782637703,-500.0,0.000313,2]
[393540132,1762782637716,-166.66,0.00031793,30]
[393540133,1762782637729,-1600.0,0.00031799,3]
[393540134,1762782637739,-224.86764211,0.000318,2]
[393540135,1762782637748,-300.0,0.00032207,3]
[393540136,1762782637758,-300.0,0.00032207,3]
[393540137,1762782637768,-2380.14,0.00032208,120]
[393540138,1762782637778,-192.63,0.00032264,120]
[393540139,1762782637789,-1200.0,0.00032521,3]
[393540140,1762782637801,-1025.53,0.00032522,30]
[393540142,1762782637812,-152.87,0.00032525,2]
[393540144,1762782637826,-1009.0,0.000326,7]
[393540147,1762782637840,-329.23770299,0.00032775,120]
[393540148,1762782637850,-250.0,0.00032775,2]
[393540149,1762782637861,-500.0,0.00032834,120]
[393540151,1762782637871,-500.0,0.00032834,120]
[393540153,1762782637883,-500.0,0.00032834,2]
[393540155,1762782637894,-500.0,0.00032834,7]
[393540157,1762782637904,-500.0,0.00032834,120]
[393540159,1762782637918,-500.0,0.00032834,30]
[393540161,1762782637928,-200.0,0.00032855,2]
[393540163,1762782637939,-638.0,0.0003287,2]
[393540165,1762782637949,-5000.0,0.0003287,2]
[393540167,1762782637961,-166.66,0.0003287,30]
[393540169,1762782637971,-250.0,0.00032877,2]
[393540171,1762782637981,-150.0,0.00032878,2]
[393540173,1762782637992,-162.75,0.00032886,2]
[393540175,1762782638002,-254.0,0.00032895,7]
[393540178,1762782638013,-200.0,0.00033,120]
[393540180,1762782638023,-9941.0,0.00033,2]
[393540182,1762782638034,-500.0,0.00033399,7]
[393540184,1762782638045,-500.0,0.00033399,7]
[393540186,1762782638057,-500.0,0.00033399,7]
[393540189,1762782638068,-500.0,0.00033399,7]
[393540191,1762782638079,-500.0,0.00033399,7]
[393540193,1762782638089,-500.0,0.00033399,7]
[393540195,1762782638100,-500.0,0.00033399,7]
[393540197,1762782638110,-500.0,0.00033399,7]
[393540199,1762782638120,-420.2446326,0.00033399,7]
[393540201,1762782638132,-500.0,0.00033399,7]
[393540204,1762782638143,-500.0,0.00033399,7]
[393540206,1762782638154,-500.0,0.00033399,7]
[393540208,1762782638165,-500.0,0.00033399,7]
[393540210,1762782638175,-500.0,0.00033399,7]
[393540212,1762782638186,-500.0,0.00033399,7]
[393540214,1762782638197,-500.0,0.00033399,7]
[393540217,1762782638209,-404.69094705,0.00033399,7]
[393540219,1762782638220,-500.0,0.00033399,7]
[393540221,1762782638231,-500.0,0.00033399,7]
[393540223,1762782638243,-500.0,0.00033399,7]
[393540224,1762782638255,-500.0,0.00033399,7]
[393540225,1762782638267,-500.0,0.00033399,7]
[393540226,1762782638279,-500.0,0.00033399,7]
[393540227,1762782638291,-500.0,0.00033399,7]
[393540228,1762782638303,-500.0,0.00033399,7]
[393540229,1762782638314,-500.0,0.00033399,7]
[393540230,1762782638325,-500.0,0.00033399,7]
[393540231,1762782638337,-500.0,0.00033399,7]
[393540232,1762782638348,-500.0,0.00033399,7]
[393540233,1762782638360,-500.0,0.00033399,7]
[393540234,1762782638371,-500.0,0.00033399,7]
[393540235,1762782638383,-500.0,0.00033399,7]
[393540236,1762782638393,-500.0,0.00033399,7]
[393540237,1762782638404,-500.0,0.00033399,7]
[393540238,1762782638414,-500.0,0.00033399,7]
[393540239,1762782638425,-500.0,0.00033399,7]
[393540240,1762782638436,-500.0,0.00033399,7]
[393540241,1762782638447,-500.0,0.00033399,7]
[393540242,1762782638458,-500.0,0.00033399,7]
[393540243,1762782638469,-1156.38371338,0.000334,35]
[393540244,1762782638483,-235.80928662,0.000334,35]
[393540245,1762782638494,-166.38745637,0.00033568,2]
[393540246,1762782638506,-833.61254363,0.00033568,2]
[393540247,1762782638517,-1176.82485731,0.00033569,2]
[393540248,1762782639639,-2288.9,0.00033569,2]
[393540249,1762782639697,-3029.01471724,0.00033569,2]
[393540250,1762782639812,-1761.60715053,0.00033569,2]
[393540251,1762782639826,-255.87659995,0.00033569,2]
[393540276,1762782643247,-90.06731212,0.00033569,2]
[393540277,1762782645816,-295.79399957,0.00033569,2]
[393540278,1762782645876,-1140.28460891,0.00033569,2]
[393540279,1762782646157,-2438.53964565,0.00033569,2]
[393540280,1762782646168,-642.25,0.00033569,2]
[393540281,1762782646220,-738.24,0.00033569,2]
[393540282,1762782646231,-1308.19569972,0.00033569,2]
[393540283,1762782646240,-1189.09605438,0.00033598,2]
[393540360,1762782894379,157.32,0.00016602,2]
[393540361,1762782894790,157.32,0.00017442,2]
[393540362,1762783032339,165.91,0.00013699,2]
[393540372,1762783234641,-254.5674,0.00018281,2]
[393540382,1762783531991,4156.55276901,0.00030137,120]
[393540392,1762783768410,-88.4326,0.00018281,2]
[393540393,1762783768432,-157.32,0.00018281,2]
[393540394,1762783768452,-157.32,0.00019121,2]
[393540395,1762783768472,-43.21863996,0.00019759,2]
[393540396,1762783831822,-179.77351571,0.00019759,2]
[393540397,1762783831832,-195.0,0.0001986,2]
[393540398,1762783831841,-157.32,0.0001996,2]
[393540399,1762783831851,-195.0,0.00020065,2]
[393540401,1762783831860,-165.91,0.00020187,2]
[393540403,1762783831870,-199.39266263,0.000202,2]
[393540405,1762783831879,-249.0,0.00020216,2]
[393540406,1762783831892,-1200.0,0.00020216,2]
[393540407,1762783831901,-500.0,0.00020217,2]
[393540408,1762783831911,-171.63174595,0.00020217,2]
[393540409,1762783831920,-500.0,0.00020217,2]
[393540410,1762783831929,-500.0,0.00020765,2]
[393540411,1762783831939,-157.32,0.000208,2]
[393540412,1762783831948,-300.0,0.00021517,2]
[393540413,1762783831957,-200.0,0.00021518,2]
[393540414,1762783831967,-200.0,0.00021518,2]
[393540415,1762783831976,-157.32,0.00021639,2]
[393540416,1762783831986,-195.0,0.00021735,2]
[393540417,1762783831996,-4194.68222613,0.00021856,2]
[393540418,1762783832008,-1383.859998,0.00021856,2]
[393540419,1762783832033,-724.37785151,0.00021856,2]
[393540420,1762783832096,-2802.91885336,0.00021856,2]
[393540421,1762783832106,-500.0,0.00021967,2]
[393540422,1762783832115,-500.0,0.00021967,2]
[393540423,1762783832126,-200.0,0.00022066,2]
[393540425,1762783832135,-200.0,0.00022066,2]
[393540427,1762783832144,-501.61257175,0.00022113,2]
[393540429,1762783832154,-500.0,0.00022113,2]
[393540431,1762783832163,-500.0,0.00022113,2]
[393540433,1762783832172,-500.0,0.00022113,2]
[393540435,1762783832181,-500.0,0.00022113,2]
[393540437,1762783832191,-500.0,0.00022113,2]
[393540438,1762783832204,-500.53083059,0.00022113,2]
[393540440,1762783832214,-500.0,0.00022113,2]
[393540442,1762783832224,-500.0,0.00022113,2]
[393540445,1762783832234,-500.0,0.00022113,2]
[393540446,1762783832243,-1680.0,0.00022113,2]
[393540448,1762783832253,-157.32,0.00022479,2]
[393540450,1762783832263,-1000.0,0.00022515,2]
[393540452,1762783832273,-216.58378992,0.00022614,2]
[393540454,1762783832287,-208.40391773,0.00022614,2]
[393540456,1762783832296,-1000.0,0.0002266,2]
[393540458,1762783832305,-486.35532093,0.0002266,2]
[393540460,1762783832315,-177.37,0.00022896,2]
[393540462,1762783832324,-500.0,0.00023063,2]
[393540464,1762783832333,-157.32,0.00023318,2]
[393540467,1762783832342,-420.0,0.00023393,2]
[393540470,1762783832351,-157.32,0.00024158,2]
[393540472,1762783832360,-2351.0,0.00024189,2]
[393540474,1762783832369,-168.06,0.00024776,2]
[393540476,1762783832378,-157.32,0.00024997,2]
[393540478,1762783832389,-587.0,0.00025433,2]
[393540479,1762783832398,-478.09862864,0.00025466,2]
[393540480,1762783832407,-150.99,0.00025786,2]
[393540481,1762783832416,-183.04,0.00025786,2]
[393540482,1762783832425,-150.99,0.00025786,2]
[393540483,1762783832435,-773.96,0.00025786,2]
[393540484,1762783832444,-871.87362901,0.00025786,2]
[393540485,1762783832456,-562.249999,0.00025786,2]
[393540486,1762783832466,-269.8722,0.00025786,2]
[393540487,1762783837758,-7369.11417199,0.00025786,2]
[393540488,1762783837767,-157.32,0.00025837,2]
[393540489,1762783837776,-222.99215566,0.000262,2]
[393540490,1762783837785,-349.0,0.00026459,2]
[393540491,1762783837795,-150.4240917,0.00026537,2]
[393540492,1762783837804,-150.0,0.00026537,2]
[393540493,1762783837813,-500.0,0.00026537,2]
[393540494,1762783837822,-500.0,0.00026537,2]
[393540495,1762783837831,-500.0,0.00026537,2]
[393540496,1762783837840,-150.0,0.00026537,2]
[393540497,1762783837850,-150.0,0.00026537,2]
[393540498,1762783837859,-500.0,0.00026537,2]
[393540499,1762783837868,-150.0,0.00026674,2]
[393540500,1762783837877,-500.0,0.00026674,2]
[393540501,1762783837886,-500.0,0.00026674,2]
[393540502,1762783837895,-500.0,0.00026674,2]
[393540503,1762783837904,-150.0,0.00026674,2]
[393540504,1762783837913,-150.0,0.00026674,2]
[393540505,1762783837923,-500.0,0.00026674,2]
[393540506,1762783837932,-165.91,0.00026676,2]
[393540507,1762783837941,-157.32,0.00026677,2]
[393540508,1762783837950,-152.34443913,0.00026811,2]
[393540509,1762783837960,-599.99915622,0.00026811,2]
[393540510,1762783837969,-252.50493855,0.00026811,2]
[393540511,1762783837979,-500.0,0.00026811,2]
[393540512,1762783837988,-633.0,0.00026811,2]
[393540513,1762783837997,-347.10169917,0.00026948,2]
[393540514,1762783838006,-210.36,0.00027232,2]
[393540515,1762783838016,-999.0,0.00027413,3]
[393540516,1762783838025,-157.32,0.00027516,2]
[393540517,1762783838034,-157.32,0.00028356,2]
[393540518,1762783838044,-157.32,0.00029195,2]
[393540519,1762783838057,-157.32,0.00030035,2]
[393540520,1762783838066,-353.69626663,0.00030137,14]
[393540521,1762783838078,-544.47084567,0.00030137,14]
[393540522,1762783838087,-208.78052416,0.00030137,14]
[393540523,1762783838095,-783.7022747,0.00030483,2]
[393540526,1762783838123,-216.2977253,0.00030483,2]
[393540528,1762783838134,-500.0,0.00030715,14]
[393540530,1762783838146,-150.0,0.00030715,14]
[393540532,1762783838156,-500.0,0.00030715,2]
[393540533,1762783838168,-150.0,0.00030715,2]
[393540534,1762783838178,-150.0,0.00030715,14]
[393540535,1762783838190,-500.0,0.00030715,14]
[393540536,1762783838203,-150.0,0.00030715,2]
[393540537,1762783838212,-500.0,0.00030715,14]
[393540538,1762783838222,-150.0,0.00030715,14]
[393540539,1762783838232,-461.30115043,0.00030809,2]
[393540540,1762783838242,-250.0,0.00030809,2]
[393540541,1762783838252,-163.89204126,0.00030809,2]
[393540542,1762783838261,-250.0,0.00030809,2]
[393540543,1762783838271,-250.0,0.00030809,2]
[393540544,1762783838281,-500.0,0.00030852,14]
[393540545,1762783838291,-524.69802744,0.00030852,2]
[393540546,1762783838301,-150.0,0.00030852,14]
[393540547,1762783838311,-500.0,0.00030852,14]
[393540548,1762783838320,-500.0,0.00030852,14]
[393540549,1762783838329,-150.0,0.00030852,14]
[393540550,1762783838339,-157.32,0.00030874,2]
[393540551,1762783838348,-280.45422316,0.0003088,5]
[393540552,1762783838358,-200.0,0.0003088,5]
[393540553,1762783838368,-500.63427104,0.0003088,5]
[393540554,1762783838378,-138.52806214,0.0003088,5]
[393540555,1762783838390,-294.25231786,0.0003088,5]
[393540556,1762783838400,-214.49967185,0.00030989,14]
[393540562,1762783839832,-335.50032815,0.00030989,14]
[393540563,1762783839842,-174.89967185,0.00030989,14]
[393540564,1762783840000,-38.15912187,0.00030989,14]
[393540565,1762783840009,-500.0,0.00030989,14]
[393540566,1762783840018,-75.70781586,0.00030989,14]
[393540567,1762783840169,-174.29218414,0.00030989,14]
[393540568,1762783840179,-150.0,0.00030989,14]
[393540569,1762783840189,-162.55734135,0.00031066,2]
[393540570,1762783840201,-500.0,0.00031125,2]
[393540571,1762783840210,-500.0,0.00031125,2]
[393540572,1762783840220,-500.0,0.00031125,2]
[393540573,1762783840231,-156.0767719,0.00031125,2]
[393540574,1762783840241,-30.97364187,0.00031125,2]
[393540663,1762783845982,-469.02635813,0.00031125,2]
[393540664,1762783845992,-138.347392,0.00031125,2]
[393540665,1762783846213,-361.652608,0.00031125,2]
[393540666,1762783846222,-500.0,0.00031125,2]
[393540667,1762783846232,-500.0,0.00031125,2]
[393540668,1762783846243,-353.10194272,0.00031125,2]
[393540672,1762783869852,195.0,0.00028365,120]
[393540673,1762783869971,195.0,0.00025854,120]
[393540674,1762783928122,195.0,0.00028365,120]
[393540675,1762783928187,195.0,0.0002582,120]
[393540749,1762784061824,250.0,0.00017,2]
[393541646,1762784708424,4999750.0,0.00018,2]
[393541647,1762784719678,719.84419432,9e-05,2]
[393541648,1762784722095,-1649382.82898179,0.00018,2]
[393541649,1762784753211,17699.98901487,0.0001501,2]
[393541650,1762784753241,50000.0,0.0001501,2]
[393541651,1762784753265,50000.0,0.0001501,2]
[393541652,1762784754179,-284.53051569,0.0001501,2]
[393541653,1762784771171,-159.46077124,0.00015009,2]
[393541654,1762784774598,-140.53922876,0.00015009,2]
[393541655,1762784774624,-54.5685294,0.0001501,2]
[393541656,1762784776400,-237.24484988,0.0001501,2]
[393541659,1762784783031,-165.37280893,0.0001501,2]
[393541660,1762784785091,-151.3778899,0.0001501,2]
[393541662,1762784801822,-160.90734079,0.0001501,2]
[393541663,1762784805830,-338.30608802,0.0001501,2]
[393541664,1762784807434,360.80166604,0.00014235,2]
[393541665,1762784813598,41154.87907084,0.000162,5]
[393541666,1762784813628,-170.73509499,0.0001501,2]
[393541667,1762784824318,-300.0,0.00015009,2]
[393541668,1762784829028,-304.75124917,0.0001501,2]
[393541669,1762784830464,-156.31587506,0.0001501,2]
[393541670,1762784831039,-9676.78,0.0001501,2]
[393541671,1762784831205,-4702.49496367,0.0001501,2]
[393541672,1762784831229,-595.02007266,0.0001501,2]
[393541673,1762784835529,-300.0,0.00016426,2]
[393541674,1762784871112,10000.01,0.00015,2]
[393541675,1762784871137,10000.01,0.00015,2]
[393541676,1762784871161,10000.01,0.00015,2]
[393541677,1762784871184,10000.01,0.00015,2]
[393541678,1762784871207,10000.01,0.00015,2]
[393541679,1762784871231,10000.01,0.00015,2]
[393541680,1762784871258,10000.01,0.00015,2]
[393541681,1762784871282,10000.01,0.00015,2]
[393541682,1762784871305,10000.01,0.00015,2]
[393541683,1762784871328,10000.01,0.00015,2]
[393541684,1762784871351,1175120.32292187,0.00015,2]
[393541685,1762784871559,200035.65410809,0.00015,2]
[393541686,1762784871813,-120.0,0.00016426,2]
[393541727,1762785032147,-933.18302333,0.00017989,2]
[393541732,1762785032207,-266.81697667,0.00017989,2]
[393541733,1762785032217,-300.0,0.00017989,2]
[393541734,1762785032226,-341.49463189,0.00017989,2]
[393541735,1762785032324,-208.50536811,0.00017989,2]
[393541736,1762785032334,-131212.57505025,0.0001799,2]
[393541737,1762785032346,-15838.46358196,0.0001799,2]
[393541738,1762785032357,-535.362,0.0001799,2]
[393541746,1762785037895,-1370.716068,0.0001799,2]
[393541747,1762785037957,-2290.94,0.0001799,2]
[393541748,1762785037973,-52552.49270355,0.0001799,2]
[393541749,1762785038021,-1055.95684857,0.0001799,2]
[393541750,1762785040309,-717.5248288,0.0001799,2]
[393541780,1762785043431,-6453.53034363,0.0001799,2]